fUSD/lending_fUSD_20251221
["ID","MTS","AMOUNT","RATE_DAILY","PERIOD"]
[399311551,1766281843670,-668.16000163,0.00016149,2]
[399311552,1766281843679,-500.0,0.00016149,2]
[399311553,1766281843688,-500.0,0.00016149,2]
[399311554,1766281843697,-151.0,0.00016149,2]
[399311555,1766281843706,-505.29521909,0.00016149,2]
[399311556,1766281843715,-628.5311494,0.00016149,2]
[399311557,1766281843724,-578.20924308,0.00016149,2]
[399311558,1766281843733,-150.0,0.00016231,2]
[399311559,1766281843742,-218.75629177,0.00016327,2]
[399311560,1766281843751,-676.872,0.00016349,2]
[399311561,1766281843760,-1000.0,0.00016349,2]
[399311562,1766281843769,-1000.0,0.00016349,2]
[399311563,1766281843779,-150.0,0.0001642,2]
[399311564,1766281843787,-150.0,0.0001642,2]
[399311565,1766281843796,-10195.0,0.00016438,2]
[399311566,1766281843806,-500.0,0.00016438,2]
[399311567,1766281843814,-500.0,0.00016438,2]
[399311568,1766281843823,-500.0,0.00016438,2]
[399311569,1766281843833,-500.0,0.00016438,2]
[399311570,1766281843845,-500.0,0.00016438,2]
[399311571,1766281843855,-500.0,0.00016438,2]
[399311572,1766281843863,-500.0,0.00016438,2]
[399311573,1766281843874,-500.0,0.00016438,2]
[399311574,1766281843883,-500.0,0.00016438,2]
[399311575,1766281843892,-500.0,0.00016438,2]
[399311576,1766281843901,-500.0,0.00016438,2]
[399311577,1766281843911,-500.0,0.00016438,2]
[399311578,1766281843920,-500.0,0.00016438,2]
[399311579,1766281843929,-500.0,0.00016438,2]
[399311580,1766281843938,-500.0,0.00016438,2]
[399311581,1766281843947,-500.0,0.00016438,2]
[399311582,1766281843957,-500.0,0.00016438,2]
[399311583,1766281843966,-500.0,0.00016438,2]
[399311584,1766281843975,-500.0,0.00016438,2]
[399311585,1766281843984,-500.0,0.00016438,2]
[399311586,1766281843993,-500.0,0.00016438,2]
[399311587,1766281844003,-500.0,0.00016438,2]
[399311588,1766281844011,-500.0,0.00016438,2]
[399311589,1766281844020,-500.0,0.00016438,2]
[399311590,1766281844030,-503.42975564,0.00016438,2]
[399311591,1766281844039,-500.0,0.00016438,2]
[399311592,1766281844048,-500.0,0.00016438,2]
[399311593,1766281844057,-500.0,0.00016438,2]
[399311594,1766281844066,-500.0,0.00016438,2]
[399311595,1766281844075,-500.0,0.00016438,2]
[399311596,1766281844084,-500.0,0.00016438,2]
[399311597,1766281844093,-500.0,0.00016438,2]
[399311598,1766281844103,-500.0,0.00016438,2]
[399311599,1766281844112,-500.0,0.00016438,2]
[399311600,1766281844121,-500.0,0.00016438,2]
[399311601,1766281844130,-500.0,0.00016438,2]
[399311602,1766281844139,-500.0,0.00016438,2]
[399311603,1766281844148,-500.0,0.00016438,2]
[399311604,1766281844157,-500.0,0.00016438,2]
[399311605,1766281844167,-500.0,0.00016438,2]
[399311606,1766281844175,-500.0,0.00016438,2]
[399311607,1766281844185,-500.0,0.00016438,2]
[399311608,1766281844194,-500.0,0.00016438,2]
[399311609,1766281844203,-500.0,0.00016438,2]
[399311610,1766281844213,-500.0,0.00016438,2]
[399311611,1766281844222,-500.0,0.00016438,2]
[399311612,1766281844231,-500.0,0.00016438,2]
[399311613,1766281844241,-500.0,0.00016438,2]
[399311614,1766281844250,-500.0,0.00016438,2]
[399311615,1766281844260,-500.0,0.00016438,2]
[399311616,1766281844269,-500.0,0.00016438,2]
[399311617,1766281844279,-500.0,0.00016438,2]
[399311618,1766281844288,-500.0,0.00016438,2]
[399311619,1766281844298,-500.0,0.00016438,2]
[399311620,1766281844307,-500.0,0.00016438,2]
[399311621,1766281844316,-500.0,0.00016438,2]
[399311622,1766281844326,-500.0,0.00016438,2]
[399311623,1766281844335,-500.0,0.00016438,2]
[399311624,1766281844344,-500.0,0.00016438,2]
[399311625,1766281844353,-500.0,0.00016438,2]
[399311626,1766281844362,-500.0,0.00016438,2]
[399311627,1766281844371,-500.0,0.00016438,2]
[399311628,1766281844381,-500.0,0.00016438,2]
[399311629,1766281844390,-500.0,0.00016438,2]
[399311630,1766281844399,-500.0,0.00016438,2]
[399311631,1766281844408,-500.0,0.00016438,2]
[399311632,1766281844420,-500.0,0.00016438,2]
[399311633,1766281844429,-500.0,0.00016438,2]
[399311634,1766281844439,-500.0,0.00016438,2]
[399311635,1766281844449,-500.0,0.00016438,2]
[399311636,1766281844458,-500.0,0.00016438,2]
[399311637,1766281844467,-500.0,0.00016438,2]
[399311638,1766281844477,-500.0,0.00016438,2]
[399311639,1766281844486,-500.0,0.00016438,2]
[399311640,1766281844495,-500.0,0.00016438,2]
[399311641,1766281844504,-500.0,0.00016438,2]
[399311642,1766281844514,-500.0,0.00016438,2]
[399311643,1766281844523,-199.99999999,0.00016438,2]
[399311644,1766281844531,-500.0,0.00016438,2]
[399311645,1766281844541,-500.0,0.00016438,2]
[399311646,1766281844552,-500.0,0.00016438,2]
[399311647,1766281844570,-500.0,0.00016438,2]
[399311648,1766281844579,-500.0,0.00016438,2]
[399311649,1766281844588,-500.0,0.00016438,2]
[399311650,1766281844603,-500.0,0.00016438,2]
[399311651,1766281844614,-500.0,0.00016438,2]
[399311652,1766281844624,-600.0,0.00016438,2]
[399311653,1766281844634,-1979.55048196,0.00016443,2]
[399311654,1766281844643,-168.0,0.00016466,2]
[399311655,1766281844653,-340.0,0.00016477,2]
[399311656,1766281844662,-167.82,0.000165,2]
[399311657,1766281844672,-168.0,0.00016581,2]
[399311658,1766281844683,-150.0,0.00016609,2]
[399311659,1766281844693,-1082.25640777,0.0001666,2]
[399311660,1766281844703,-1138.28645356,0.0001666,2]
[399311661,1766281844712,-1005.10048676,0.0001666,2]
[399311662,1766281844721,-1113.22944893,0.0001666,2]
[399311663,1766281844731,-1078.57592279,0.0001666,2]
[399311664,1766281844740,-1050.60430059,0.0001666,2]
[399311665,1766281844749,-1118.29518483,0.0001666,2]
[399311666,1766281844758,-1007.06684204,0.0001666,2]
[399311667,1766281844767,-1090.21063821,0.0001666,2]
[399311668,1766281844779,-1004.8072546,0.0001666,2]
[399311669,1766281844789,-1071.74639046,0.0001666,2]
[399311670,1766281844798,-1000.32913858,0.0001666,2]
[399311671,1766281844807,-1124.44364604,0.0001666,2]
[399311672,1766281844816,-1089.23364717,0.0001666,2]
[399311673,1766281844826,-1067.28669731,0.0001666,2]
[399311674,1766281844836,-1142.17146353,0.0001666,2]
[399311675,1766281844846,-1074.28775729,0.0001666,2]
[399311676,1766281844855,-1085.45154752,0.0001666,2]
[399311677,1766281844864,-1112.76205699,0.0001666,2]
[399311678,1766281844873,-1136.1629761,0.0001666,2]
[399311679,1766281844883,-1125.0087757,0.0001666,2]
[399311680,1766281844892,-1016.26270936,0.0001666,2]
[399311681,1766281844902,-1133.6253453,0.0001666,2]
[399311682,1766281844912,-1136.57916528,0.0001666,2]
[399311683,1766281844922,-1098.1763809,0.0001666,2]
[399311684,1766281844931,-1123.58318127,0.0001666,2]
[399311685,1766281844941,-1039.89096626,0.0001666,2]
[399311686,1766281844951,-1078.57894335,0.0001666,2]
[399311687,1766281844961,-1044.77681038,0.0001666,2]
[399311688,1766281844970,-8916.85710758,0.0001666,2]
[399311689,1766281844979,-742.84249719,0.00016697,2]
[399311690,1766281844989,-164.91584253,0.00016697,2]
[399311691,1766281844998,-574.12855637,0.00016697,2]
[399311692,1766281845007,-151.0,0.00016697,2]
[399311693,1766281845017,-150.0,0.00016703,2]
[399311694,1766281845026,-600.0,0.00016712,2]
[399311695,1766281845035,-250.0,0.00016749,2]
[399311696,1766281845044,-150.0,0.00016798,2]
[399311697,1766281845054,-2000.0,0.00016864,2]
[399311698,1766281845063,-200.0,0.00016864,2]
[399311699,1766281845073,-10000.0,0.00016899,2]
[399311700,1766281845081,-156.49671293,0.000169,2]
[399311701,1766281845090,-616.48789083,0.000169,2]
[399311702,1766281845100,-7348.72101387,0.000169,2]
[399311703,1766281845109,-218.75629177,0.000169,2]
[399311704,1766281845117,-186.96215243,0.000169,2]
[399311705,1766281845126,-927.18019724,0.000169,2]
[399311706,1766281845136,-4618.30779443,0.000169,2]
[399311707,1766281845145,-1979.55048196,0.000169,2]
[399311708,1766281845155,-10084.26512668,0.000169,2]
[399311709,1766281845164,-4357.0,0.000169,2]
[399311710,1766281845173,-823.0,0.00016936,2]
[399311711,1766281845183,-166.67,0.00016954,2]
[399311712,1766281845192,-1000.0,0.0001697,2]
[399311714,1766281845201,-500.0,0.0001697,2]
[399311715,1766281845210,-1000.0,0.0001697,2]
[399311716,1766281845219,-500.0,0.0001697,2]
[399311717,1766281845228,-1000.0,0.0001697,2]
[399311718,1766281845237,-500.0,0.0001697,2]
[399311719,1766281845246,-1000.0,0.0001697,2]
[399311720,1766281845256,-500.0,0.0001697,2]
[399311721,1766281845265,-1303.24305354,0.0001697,2]
[399311722,1766281845275,-500.0,0.0001697,2]
[399311723,1766281845284,-500.26929196,0.0001697,2]
[399311724,1766281845293,-193.09097811,0.00016973,2]
[399311725,1766281845302,-501.10739853,0.00016973,2]
[399311726,1766281845311,-501.76765437,0.00016973,2]
[399311727,1766281845321,-500.0,0.00016973,2]
[399311728,1766281845330,-600.0,0.00016986,2]
[399311729,1766281845339,-156.00450993,0.00016986,2]
[399311730,1766281845348,-160.79668621,0.00016986,2]
[399311731,1766281845358,-1975.3467264,0.00016989,2]
[399311732,1766281845367,-1552.74512386,0.00016998,2]
[399311733,1766281845377,-555.13,0.00016998,2]
[399311734,1766281845386,-799.31,0.00016998,2]
[399311735,1766281845395,-376.9654415,0.00016998,2]
[399311736,1766281845404,-555.13,0.00016999,2]
[399311738,1766281845414,-555.13,0.00016999,2]
[399311739,1766281845423,-555.13,0.00016999,2]
[399311740,1766281845432,-555.13,0.00016999,2]
[399311741,1766281845441,-555.13,0.00016999,2]
[399311742,1766281845451,-555.13,0.00016999,2]
[399311743,1766281845460,-555.13,0.00016999,2]
[399311744,1766281845469,-555.13,0.00016999,2]
[399311745,1766281845478,-555.13,0.00016999,2]
[399311746,1766281845488,-555.13,0.00016999,2]
[399311747,1766281845498,-555.13,0.00016999,2]
[399311748,1766281845507,-555.13,0.00016999,2]
[399311749,1766281845516,-555.27475033,0.00016999,2]
[399311750,1766281845525,-300.0,0.00016999,2]
[399311751,1766281845535,-300.0,0.00016999,2]
[399311752,1766281845544,-799.31,0.00016999,2]
[399311753,1766281845554,-799.31,0.00016999,2]
[399311754,1766281845563,-799.31,0.00016999,2]
[399311755,1766281845572,-799.31,0.00016999,2]
[399311756,1766281845582,-799.31,0.00016999,2]
[399311757,1766281845591,-799.31,0.00016999,2]
[399311758,1766281845600,-799.31,0.00016999,2]
[399311759,1766281845610,-799.31,0.00016999,2]
[399311760,1766281845619,-799.31,0.00016999,2]
[399311761,1766281845628,-799.31,0.00016999,2]
[399311762,1766281845637,-799.31,0.00016999,2]
[399311763,1766281845647,-799.31,0.00016999,2]
[399311764,1766281845656,-799.50753557,0.00016999,2]
[399311765,1766281845665,-300.0,0.00016999,2]
[399311766,1766281845675,-300.0,0.00016999,2]
[399311767,1766281845684,-300.0,0.00016999,2]
[399311768,1766281845693,-489224.15266645,0.00017,2]
[399311770,1766281845735,-441.12,0.00017,2]
[399311772,1766281845747,-483.43048891,0.00017,2]
[399311773,1766281845764,-829204.93102141,0.00017,2]
[399311774,1766281845774,-385965.29810154,0.00017,2]
[399311776,1766281845783,-46812.09204829,0.00017,2]
[399311777,1766281845857,-1692.96193425,0.00017,2]
[399311806,1766281950396,454.93203895,0.000176,30]
[399311900,1766282453209,152.0,0.00021904,30]
[399311941,1766282831578,606.418,0.00022,30]
[399311978,1766283031505,-573.758,0.00012578,2]
[399311979,1766283031515,-151.0,0.0001273,2]
[399311980,1766283031527,-300.0,0.00012732,2]
[399311981,1766283031537,-46427.05293025,0.00012733,2]
[399311982,1766283031556,-2396.24930994,0.00012733,2]
[399311983,1766283031611,-1008.33,0.00012733,2]
[399311984,1766283031623,-273.00000014,0.00012733,2]
[399311985,1766283031635,-1020.54048194,0.00012733,2]
[399311986,1766283031646,-1012.46642951,0.00012733,2]
[399311987,1766283031670,-4768.95087844,0.00012733,2]
[399311988,1766283031682,-5332.97867924,0.00012733,2]
[399311989,1766283031696,-589.00125033,0.00012733,2]
[399311991,1766283031787,-500.0,0.00012732,2]
[399311993,1766283031797,-178.85969858,0.00012732,2]
[399311995,1766283031806,-13495.15541667,0.00012733,2]
[399311997,1766283031821,-17479.26476547,0.00012733,2]
[399312015,1766283037619,-284.96642664,0.00012732,2]
[399312016,1766283037629,-471.00421277,0.00012732,2]
[399312017,1766283037638,-500.0,0.00012732,2]
[399312018,1766283037647,-500.0,0.00012732,2]
[399312019,1766283037656,-500.0,0.00012732,2]
[399312020,1766283037665,-500.0,0.00012732,2]
[399312021,1766283037674,-503.01876727,0.00012732,2]
[399312022,1766283037684,-500.91481634,0.00012732,2]
[399312023,1766283037698,-364.35739065,0.00012732,2]
[399312024,1766283037707,-500.0,0.00012732,2]
[399312025,1766283037716,-187.34558094,0.00012732,2]
[399312026,1766283037726,-358.39122575,0.00012732,2]
[399312027,1766283037735,-218.23232499,0.00012732,2]
[399312028,1766283037762,-281.76767501,0.00012732,2]
[399312029,1766283037774,-169.37419004,0.00012732,2]
[399312030,1766283037786,-330.62580996,0.00012732,2]
[399312031,1766283037795,-500.0,0.00012732,2]
[399312032,1766283037806,-500.0,0.00012732,2]
[399312033,1766283037815,-500.0,0.00012732,2]
[399312034,1766283037828,-500.0,0.00012732,2]
[399312035,1766283037837,-500.0,0.00012732,2]
[399312036,1766283037847,-500.0,0.00012732,2]
[399312037,1766283037857,-500.0,0.00012732,2]
[399312038,1766283037867,-500.0,0.00012732,2]
[399312039,1766283037875,-500.0,0.00012732,2]
[399312040,1766283037885,-643.44640853,0.00012732,2]
[399312041,1766283037894,-500.0,0.00012732,2]
[399312042,1766283037903,-500.0,0.00012732,2]
[399312043,1766283037912,-500.0,0.00012732,2]
[399312044,1766283037922,-500.0,0.00012732,2]
[399312045,1766283037932,-500.0,0.00012732,2]
[399312046,1766283037941,-500.0,0.00012732,2]
[399312048,1766283037950,-500.0,0.00012732,2]
[399312050,1766283037959,-500.0,0.00012732,2]
[399312051,1766283037971,-500.0,0.00012732,2]
[399312052,1766283037981,-500.0,0.00012732,2]
[399312053,1766283037992,-500.0,0.00012732,2]
[399312055,1766283038002,-500.0,0.00012732,2]
[399312057,1766283038011,-500.0,0.00012732,2]
[399312058,1766283038020,-500.0,0.00012732,2]
[399312059,1766283038029,-500.0,0.00012732,2]
[399312060,1766283038039,-500.0,0.00012732,2]
[399312061,1766283038048,-500.0,0.00012732,2]
[399312062,1766283038057,-500.0,0.00012732,2]
[399312064,1766283038067,-387.99335133,0.00012732,2]
[399312065,1766283038076,-500.0,0.00012732,2]
[399312066,1766283038087,-500.0,0.00012732,2]
[399312067,1766283038096,-500.0,0.00012732,2]
[399312068,1766283038105,-500.0,0.00012732,2]
[399312069,1766283038114,-500.0,0.00012732,2]
[399312070,1766283038123,-500.0,0.00012732,2]
[399312071,1766283038132,-500.0,0.00012732,2]
[399312072,1766283038141,-500.0,0.00012732,2]
[399312073,1766283038150,-500.0,0.00012732,2]
[399312074,1766283038160,-500.0,0.00012732,2]
[399312075,1766283038169,-500.0,0.00012732,2]
[399312076,1766283038179,-500.0,0.00012732,2]
[399312077,1766283038188,-500.0,0.00012732,2]
[399312078,1766283038197,-41937.30052475,0.00012733,2]
[399312079,1766283038217,-183167.36254933,0.00012733,2]
[399312080,1766283038228,-842.19516951,0.00012733,2]
[399312081,1766283038239,-7705.38585625,0.00012733,2]
[399312082,1766283038250,-348.01441186,0.00012733,2]
[399312083,1766283038267,-379.74326651,0.00012733,2]
[399312084,1766283038278,-4312.66566898,0.00012733,2]
[399312085,1766283038293,-3531.99658436,0.00012733,2]
[399312086,1766283039624,-500.0,0.00012732,2]
[399312087,1766283039634,-12941.71464927,0.00012733,2]
[399312088,1766283039677,-1865.2,0.00012733,2]
[399312089,1766283039689,-5816.52133088,0.00012733,2]
[399312090,1766283039705,-2991.06880965,0.00012733,2]
[399312091,1766283039731,-521.01757855,0.00012733,2]
[399312092,1766283039788,-1455.83665154,0.00012733,2]
[399312093,1766283039800,-271.37002482,0.00012733,2]
[399312094,1766283039999,-638109.61678181,0.00012733,2]
[399312095,1766283040009,-320.7006,0.00012735,2]
[399312096,1766283040019,-584.0684,0.00012735,2]
[399312097,1766283040028,-941.47394851,0.00012798,2]
[399312098,1766283040037,-500.0,0.00012827,2]
[399312099,1766283040046,-151.0,0.00012827,2]
[399312100,1766283040055,-500.0,0.00012827,2]
[399312101,1766283040064,-151.0,0.00012827,2]
[399312102,1766283040073,-151.0,0.00012827,2]
[399312103,1766283040084,-500.0,0.00012827,2]
[399312104,1766283040093,-151.0,0.00012827,2]
[399312105,1766283040102,-443.09195531,0.00012827,2]
[399312106,1766283040111,-151.0,0.00012827,2]
[399312107,1766283040120,-151.0,0.00012827,2]
[399312108,1766283040129,-151.0,0.00012827,2]
[399312109,1766283040138,-151.0,0.00012827,2]
[399312110,1766283040147,-151.0,0.00012827,2]
[399312111,1766283040156,-151.0,0.00012827,2]
[399312112,1766283040165,-151.0,0.00012827,2]
[399312113,1766283040174,-151.0,0.00012827,2]
[399312114,1766283040183,-151.0,0.0001283,2]
[399312115,1766283040192,-1000.0,0.00012835,2]
[399312116,1766283040201,-6991.27691405,0.00012918,2]
[399312117,1766283040210,-325.86221164,0.00013018,2]
[399312118,1766283040219,-999.0,0.00013085,3]
[399312119,1766283040227,-1044.2,0.00013118,2]
[399312120,1766283040237,-200.0,0.00013224,2]
[399312121,1766283040246,-941.47394848,0.00013254,2]
[399312122,1766283040255,-6991.27691404,0.0001336,2]
[399312123,1766283040264,-214.0066534,0.00013598,2]
[399312124,1766283040273,-500.0,0.00013698,2]
[399312125,1766283040283,-500.0,0.00013698,2]
[399312126,1766283040291,-500.0,0.00013698,2]
[399312127,1766283040301,-508.60331916,0.00013698,2]
[399312128,1766283040310,-500.0,0.00013698,2]
[399312129,1766283040319,-500.0,0.00013698,2]
[399312130,1766283040328,-500.0,0.00013698,2]
[399312131,1766283040337,-500.0,0.00013698,2]
[399312132,1766283040346,-500.0,0.00013698,2]
[399312133,1766283040355,-241.3836756,0.00013698,2]
[399312134,1766283040364,-500.0,0.00013698,2]
[399312135,1766283040373,-500.0,0.00013698,2]
[399312136,1766283040381,-500.0,0.00013698,2]
[399312137,1766283040390,-310.03592822,0.00013698,2]
[399312138,1766283040399,-941.47394848,0.0001371,2]
[399312139,1766283040408,-3808.50311167,0.00013777,2]
[399312140,1766283040416,-6991.27691404,0.00013803,2]
[399312141,1766283040425,-2500.0,0.00013836,2]
[399312142,1766283040434,-2500.0,0.00013836,2]
[399312143,1766283040443,-300.0,0.00013836,2]
[399312144,1766283040452,-300.0,0.00013836,2]
[399312145,1766283040461,-300.0,0.00013836,2]
[399312146,1766283040470,-300.0,0.00013836,2]
[399312147,1766283040479,-300.0,0.00013836,2]
[399312148,1766283040488,-2500.0,0.00013836,2]
[399312149,1766283040497,-1326.87911757,0.00013836,2]
[399312150,1766283040506,-2500.0,0.00013836,2]
[399312152,1766283040515,-300.0,0.00013836,2]
[399312153,1766283040524,-420.0,0.00013967,2]
[399312154,1766283040533,-214.0066534,0.00014148,2]
[399312155,1766283040543,-941.47394848,0.00014165,2]
[399312156,1766283040551,-6991.27691404,0.00014245,2]
[399312157,1766283040560,-635.83,0.00014446,2]
[399312158,1766283040570,-941.47394848,0.00014621,2]
[399312159,1766283040579,-6991.27691404,0.00014688,2]
[399312160,1766283040588,-214.0066534,0.00014699,2]
[399312161,1766283040598,-325.86221162,0.00014959,2]
[399312162,1766283040608,-941.47394848,0.00015077,2]
[399312163,1766283040618,-6991.27691404,0.0001513,2]
[399312164,1766283040628,-163.337,0.00015142,2]
[399312165,1766283040637,-1326.0,0.00015142,2]
[399312166,1766283040648,-612.0,0.00015142,2]
[399312167,1766283040658,-1609.0,0.00015142,2]
[399312168,1766283040671,-518.0,0.00015142,2]
[399312169,1766283040682,-2429.0,0.00015142,2]
[399312170,1766283040694,-564.0,0.00015142,2]
[399312171,1766283040706,-500.0,0.00015151,2]
[399312172,1766283040716,-214.0066534,0.00015249,2]
[399312173,1766283040726,-587.0,0.00015321,2]
[399312174,1766283040736,-3639.0,0.00015342,2]
[399312175,1766283040747,-941.47394848,0.00015533,2]
[399312176,1766283040756,-6991.27691404,0.00015573,2]
[399312177,1766283040767,-214.0066534,0.00015799,2]
[399312178,1766283040776,-168.0,0.00015962,2]
[399312179,1766283040785,-168.0,0.00015972,2]
[399312180,1766283040796,-500.0,0.00015973,2]
[399312181,1766283040805,-168.0,0.00015981,2]
[399312182,1766283040816,-150.0,0.00015987,2]
[399312183,1766283040826,-941.47394848,0.00015988,2]
[399312184,1766283040836,-1000.0,0.00016005,2]
[399312185,1766283040845,-6991.27691404,0.00016015,2]
[399312186,1766283040854,-765.0,0.0001602,2]
[399312187,1766283040863,-765.0,0.00016031,2]
[399312188,1766283040873,-300.0,0.00016078,2]
[399312189,1766283040882,-9999.99,0.00016116,2]
[399312190,1766283040891,-2471.02236011,0.00016149,2]
[399312191,1766283040900,-668.65185757,0.00016149,2]
[399312192,1766283040910,-719.23903586,0.00016149,2]
[399312193,1766283040919,-151.0,0.00016149,2]
[399312194,1766283040928,-553.64373807,0.00016149,2]
[399312195,1766283040937,-151.0,0.00016149,2]
[399312196,1766283040947,-151.0,0.00016149,2]
[399312197,1766283040956,-578.20924308,0.00016149,2]
[399312198,1766283040965,-200.0,0.00016149,2]
[399312199,1766283040974,-207.4,0.00016149,2]
[399312200,1766283040984,-215.0738,0.00016149,2]
[399312201,1766283040993,-300.0,0.00016149,2]
[399312202,1766283041002,-765.0,0.000162,2]
[399312203,1766283041012,-635.83,0.00016252,2]
[399312204,1766283041021,-765.0,0.00016313,2]
[399312205,1766283041030,-214.0066534,0.0001635,2]
[399312206,1766283041039,-168.0,0.00016396,2]
[399312207,1766283041048,-9345.4,0.00016438,2]
[399312208,1766283041058,-500.0,0.00016438,2]
[399312209,1766283041067,-500.0,0.00016438,2]
[399312210,1766283041076,-500.0,0.00016438,2]
[399312211,1766283041086,-500.0,0.00016438,2]
[399312212,1766283041095,-500.0,0.00016438,2]
[399312213,1766283041105,-500.0,0.00016438,2]
[399312214,1766283041115,-500.0,0.00016438,2]
[399312215,1766283041125,-500.0,0.00016438,2]
[399312216,1766283041134,-500.0,0.00016438,2]
[399312217,1766283041144,-500.0,0.00016438,2]
[399312218,1766283041154,-500.0,0.00016438,2]
[399312219,1766283041164,-500.0,0.00016438,2]
[399312220,1766283041173,-500.0,0.00016438,2]
[399312221,1766283041183,-500.0,0.00016438,2]
[399312222,1766283041192,-500.0,0.00016438,2]
[399312223,1766283041202,-500.0,0.00016438,2]
[399312224,1766283041212,-500.0,0.00016438,2]
[399312225,1766283041222,-500.0,0.00016438,2]
[399312226,1766283041232,-500.0,0.00016438,2]
[399312227,1766283041242,-500.0,0.00016438,2]
[399312228,1766283041252,-500.0,0.00016438,2]
[399312229,1766283041261,-500.0,0.00016438,2]
[399312230,1766283041270,-500.0,0.00016438,2]
[399312231,1766283041280,-500.0,0.00016438,2]
[399312232,1766283041289,-500.0,0.00016438,2]
[399312233,1766283041298,-500.0,0.00016438,2]
[399312234,1766283041308,-500.0,0.00016438,2]
[399312235,1766283041326,-500.0,0.00016438,2]
[399312236,1766283041337,-500.0,0.00016438,2]
[399312237,1766283041347,-500.0,0.00016438,2]
[399312238,1766283041359,-500.0,0.00016438,2]
[399312239,1766283041369,-500.0,0.00016438,2]
[399312240,1766283041378,-500.0,0.00016438,2]
[399312241,1766283041388,-317.64008346,0.00016438,2]
[399312242,1766283041828,-500.0,0.00016438,2]
[399312243,1766283041838,-500.0,0.00016438,2]
[399312244,1766283041848,-500.0,0.00016438,2]
[399312245,1766283041858,-500.0,0.00016438,2]
[399312246,1766283041868,-500.0,0.00016438,2]
[399312247,1766283041878,-500.0,0.00016438,2]
[399312248,1766283041887,-600.0,0.00016438,2]
[399312249,1766283041897,-553.79,0.00016438,2]
[399312250,1766283041906,-553.79,0.00016438,2]
[399312251,1766283041920,-553.79,0.00016438,2]
[399312252,1766283041930,-553.79,0.00016438,2]
[399312253,1766283041939,-941.47394848,0.00016444,2]
[399312254,1766283041948,-168.0,0.00016456,2]
[399312255,1766283041958,-6991.27691404,0.00016458,2]
[399312256,1766283041968,-168.0,0.00016484,2]
[399312257,1766283041978,-168.0,0.00016615,2]
[399312258,1766283041990,-291.45263024,0.0001662,2]
[399312259,1766283042000,-4458.42855379,0.0001666,2]
[399312260,1766283042010,-168.0,0.00016682,2]
[399312261,1766283042020,-574.12855637,0.00016697,2]
[399312262,1766283042031,-153.40188186,0.00016697,2]
[399312263,1766283042041,-481.17,0.00016712,2]
[399312264,1766283042050,-481.17,0.00016712,2]
[399312265,1766283042059,-969.65,0.00016712,2]
[399312266,1766283042069,-481.17,0.00016712,2]
[399312267,1766283042079,-481.17,0.00016712,2]
[399312268,1766283042088,-481.17,0.00016712,2]
[399312269,1766283042097,-167.85,0.00016712,2]
[399312270,1766283042106,-823.0,0.00016807,2]
[399312271,1766283042116,-200.0,0.00016863,2]
[399312272,1766283042126,-200.0,0.00016864,2]
[399312273,1766283042136,-200.0,0.00016864,2]
[399312274,1766283042147,-500.0,0.00016899,2]
[399312275,1766283042156,-214.0066534,0.000169,2]
[399312276,1766283042166,-10000.0,0.000169,2]
[399312277,1766283042177,-200.0,0.000169,2]
[399312278,1766283042187,-273.0,0.000169,3]
[399312279,1766283042196,-941.47394848,0.000169,2]